fUSD/lending_fUSD_20260409
["ID","MTS","AMOUNT","RATE_DAILY","PERIOD"]
[420145470,1775724645587,-741.379085,0.00012302,2]
[420145471,1775724645596,-6268.11348938,0.00012347,2]
[420145472,1775724645606,-609.167902,0.00012347,2]
[420145473,1775724645617,-39450.36520646,0.00012366,2]
[420145474,1775724645627,-26593.73041237,0.00012366,2]
[420145475,1775724645636,-151.0,0.00012366,2]
[420145476,1775724645646,-152.0,0.00012401,5]
[420145477,1775724645656,-325.65,0.00012412,2]
[420145478,1775724645666,-160.0,0.00012455,2]
[420145479,1775724645676,-200.0,0.00012492,2]
[420145480,1775724645686,-1328.27659266,0.00012492,2]
[420145481,1775724645696,-829.12830338,0.00012492,2]
[420145482,1775724645706,-194.72792766,0.00012492,2]
[420145483,1775724645715,-578.36645902,0.00012512,2]
[420145484,1775724645725,-1500.0,0.00012524,2]
[420145485,1775724645734,-449.5466066,0.00012545,2]
[420145486,1775724645744,-180.90904089,0.00012649,2]
[420145487,1775724645754,-150.0,0.00012666,3]
[420145488,1775724645764,-166.66,0.00012691,2]
[420145489,1775724645773,-6600.0,0.000127,4]
[420145490,1775724645783,-1150.50831058,0.000127,2]
[420145491,1775724645793,-839.499835,0.00012705,2]
[420145492,1775724645803,-2260.885068,0.00012705,2]
[420145493,1775724645812,-39450.36520646,0.00012777,2]
[420145494,1775724645822,-26593.73041237,0.00012777,2]
[420145495,1775724645831,-1000.0,0.000128,2]
[420145496,1775724645841,-313.0,0.000128,2]
[420145497,1775724645850,-879.0,0.000128,2]
[420145498,1775724645860,-8900.0,0.000128,4]
[420145499,1775724645870,-306.0,0.000128,2]
[420145501,1775724645879,-177.4485034,0.00012833,2]
[420145502,1775724645889,-200.0,0.00012834,2]
[420145503,1775724645899,-274.11,0.00012877,2]
[420145504,1775724645908,-622.0,0.00012885,2]
[420145505,1775724645918,-1365.358,0.00012885,2]
[420145506,1775724645929,-1047.0,0.00012885,2]
[420145507,1775724645939,-1264.0,0.00012885,2]
[420145508,1775724645948,-150.0,0.00012885,2]
[420145509,1775724645958,-3773.0,0.00012885,2]
[420145510,1775724645967,-415.0,0.00012885,2]
[420145511,1775724645977,-11100.0,0.000129,4]
[420145512,1775724645987,-168.0,0.00012914,2]
[420145514,1775724645996,-168.0,0.00012919,2]
[420145515,1775724646006,-152.0,0.00012925,6]
[420145516,1775724646015,-1116.0,0.00012931,2]
[420145517,1775724646024,-1792.378248,0.0001294,2]
[420145518,1775724646034,-3292.0,0.00012949,2]
[420145519,1775724646043,-823.0,0.00012949,2]
[420145520,1775724646053,-2000.0,0.0001296,2]
[420145521,1775724646063,-200.0515,0.00013,2]
[420145522,1775724646072,-151.0,0.00013,2]
[420145523,1775724646082,-168.0,0.0001304,2]
[420145524,1775724646092,-200.0,0.0001304,2]
[420145525,1775724646101,-1377.42282659,0.0001304,2]
[420145526,1775724646111,-859.80605061,0.0001304,2]
[420145527,1775724646121,-201.93286099,0.0001304,2]
[420145528,1775724646131,-168.0,0.00013071,2]
[420145529,1775724646141,-736.0,0.00013082,2]
[420145530,1775724646151,-166.66,0.00013084,2]
[420145531,1775724646160,-168.0,0.000131,2]
[420145532,1775724646170,-502.0,0.000131,2]
[420145533,1775724646181,-151.0,0.00013117,2]
[420145534,1775724646191,-1818.2,0.00013122,2]
[420145535,1775724646201,-325.65,0.00013124,2]
[420145536,1775724646211,-180.6572743,0.00013133,2]
[420145537,1775724646221,-1000.0,0.00013134,2]
[420145538,1775724646231,-168.0,0.00013138,2]
[420145539,1775724646617,-150.0,0.00013157,2]
[420145540,1775724646627,-1000.0,0.00013159,2]
[420145541,1775724646637,-6268.11348938,0.00013163,2]
[420145542,1775724646647,-183.97668191,0.00013172,2]
[420145543,1775724646656,-1000.0,0.00013176,2]
[420145544,1775724646665,-150.0,0.00013187,2]
[420145545,1775724646675,-39450.36520646,0.00013188,2]
[420145546,1775724646685,-26593.73041237,0.00013188,2]
[420145547,1775724646694,-565.99618407,0.00013192,2]
[420145548,1775724646703,-530.1535435,0.00013195,2]
[420145549,1775724646712,-151.0,0.00013198,2]
[420145550,1775724646722,-3000.0,0.000132,2]
[420145551,1775724646731,-260.03575513,0.00013202,2]
[420145552,1775724646740,-4760.637,0.00013207,2]
[420145553,1775724646749,-247.59,0.00013207,2]
[420145554,1775724646759,-150.0,0.0001323,2]
[420145555,1775724646768,-152.27797544,0.00013232,2]
[420145556,1775724646777,-875.85571558,0.00013232,2]
[420145557,1775724646787,-300.0,0.00013237,2]
[420145558,1775724646797,-1000.0,0.00013249,2]
[420145559,1775724646807,-150.0,0.00013266,2]
[420145560,1775724646816,-1000.0,0.00013276,2]
[420145561,1775724646825,-2000.0,0.0001329,2]
[420145562,1775724646834,-2000.0,0.0001329,2]
[420145563,1775724646844,-300.0,0.00013294,2]
[420145564,1775724646853,-300.0,0.00013294,2]
[420145565,1775724646863,-300.0,0.00013294,2]
[420145566,1775724646872,-1101.0,0.00013295,5]
[420145567,1775724646882,-669399.6653,0.00013295,2]
[420145568,1775724646891,-151.0,0.00013295,2]
[420145569,1775724646901,-151.0,0.00013295,2]
[420145570,1775724646910,-151.0,0.00013295,2]
[420145571,1775724646919,-2000.0,0.000133,2]
[420145572,1775724646928,-150.0,0.00013304,2]
[420145573,1775724646938,-150.0,0.00013305,2]
[420145574,1775724646948,-1000.0,0.00013308,2]
[420145575,1775724646958,-317.56,0.00013309,2]
[420145576,1775724646967,-150.0,0.00013318,2]
[420145577,1775724646977,-2000.0,0.0001332,2]
[420145578,1775724646986,-200.0,0.00013321,2]
[420145580,1775724646996,-150.0,0.00013321,2]
[420145582,1775724647006,-200.0,0.00013322,2]
[420145583,1775724647016,-1015.94760317,0.00013322,2]
[420145584,1775724647025,-300.0,0.00013331,2]
[420145585,1775724647035,-300.0,0.00013331,2]
[420145586,1775724647044,-300.0,0.00013331,2]
[420145587,1775724647055,-503709.4776524,0.00013332,2]
[420145588,1775724647065,-921308.97350536,0.00013332,2]
[420145594,1775724648863,-151.0,0.00011099,2]
[420145595,1775724648873,-6023.0,0.00012885,2]
[420145596,1775724648882,-13080.79726527,0.00013332,2]
[420145597,1775724649143,-151.0,0.00011178,2]
[420145598,1775724649153,-2059.96754618,0.00013332,2]
[420145599,1775724649186,-14269.83555207,0.00013332,2]
[420145600,1775724649197,-409.67037564,0.00013332,2]
[420145601,1775724649618,-150.0,0.0001,2]
[420145602,1775724649627,-151.0,0.00010904,2]
[420145603,1775724649637,-151.0,0.00011099,2]
[420145604,1775724649646,-151.0,0.00011178,2]
[420145605,1775724649656,-173.393,0.000114,2]
[420145606,1775724649665,-151.0,0.00011544,2]
[420145607,1775724649674,-174.921455,0.00011544,2]
[420145608,1775724649684,-151.0,0.00012366,2]
[420145609,1775724649693,-200.4344,0.000128,2]
[420145610,1775724649702,-64564.29095283,0.00013332,2]
[420145611,1775724683997,158.1,6.181e-05,2]
[420145613,1775724725241,150.0,6.181e-05,3]
[420145614,1775724725531,150.0,8.818e-05,3]
[420145615,1775724735052,150.0,6.181e-05,3]
[420145616,1775724848537,150.0,6.181e-05,3]
[420145630,1775724906463,150.0,6.181e-05,3]
[420145633,1775724967110,150.0,6.181e-05,3]
[420145636,1775725084426,-158.1,9.271e-05,2]
[420145637,1775725084450,-373.0,9.487e-05,2]
[420145638,1775725084473,-468.9,9.703e-05,2]
[420145639,1775725085580,-31.1,9.703e-05,2]
[420145640,1775725085602,-500.0,9.703e-05,2]
[420145641,1775725085624,-300.0,9.728e-05,2]
[420145642,1775725085651,-168.9,9.729e-05,2]
[420145643,1775725086968,-331.1,9.729e-05,2]
[420145644,1775725086994,-500.0,9.729e-05,2]
[420145645,1775725087021,-168.9,9.729e-05,2]
[420145646,1775725087111,-331.1,9.729e-05,2]
[420145647,1775725087138,-500.0,9.729e-05,2]
[420145648,1775725087164,-168.9,9.729e-05,2]
[420145649,1775725087241,-331.1,9.729e-05,2]
[420145650,1775725087266,-500.0,9.729e-05,2]
[420145651,1775725087292,-168.9,9.729e-05,2]
[420145652,1775725087369,-331.1,9.729e-05,2]
[420145653,1775725087395,-500.0,9.729e-05,2]
[420145654,1775725087422,-168.9,9.729e-05,2]
[420145655,1775725087589,-331.1,9.729e-05,2]
[420145656,1775725087615,-500.0,9.729e-05,2]
[420145657,1775725087643,-168.9,9.729e-05,2]
[420145659,1775725087982,-331.1,9.729e-05,2]
[420145660,1775725088009,-500.0,9.729e-05,2]
[420145661,1775725088035,-168.9,9.729e-05,2]
[420145662,1775725088391,-331.1,9.729e-05,2]
[420145663,1775725088418,-500.0,9.729e-05,2]
[420145664,1775725088809,-168.9,9.729e-05,2]
[420145665,1775725088901,-331.1,9.729e-05,2]
[420145666,1775725088928,-500.0,9.729e-05,2]
[420145667,1775725088954,-168.9,9.729e-05,2]
[420145668,1775725089092,-331.1,9.729e-05,2]
[420145669,1775725089119,-500.0,9.729e-05,2]
[420145670,1775725089146,-168.9,9.729e-05,2]
[420145671,1775725089460,-331.1,9.729e-05,2]
[420145672,1775725089486,-500.0,9.729e-05,2]
[420145673,1775725089512,-168.9,9.729e-05,2]
[420145674,1775725089848,-331.1,9.729e-05,2]
[420145675,1775725089875,-500.0,9.729e-05,2]
[420145676,1775725089902,-168.9,9.729e-05,2]
[420145677,1775725090303,-331.1,9.729e-05,2]
[420145678,1775725090330,-500.0,9.729e-05,2]
[420145679,1775725090357,-168.9,9.729e-05,2]
[420145680,1775725090710,-331.1,9.729e-05,2]
[420145681,1775725090739,-500.0,9.729e-05,2]
[420145682,1775725090769,-168.9,9.729e-05,2]
[420145683,1775725091024,-331.1,9.729e-05,2]
[420145684,1775725091052,-500.0,9.729e-05,2]
[420145685,1775725091081,-168.9,9.729e-05,2]
[420145686,1775725091433,-331.1,9.729e-05,2]
[420145687,1775725091461,-500.0,9.729e-05,2]
[420145688,1775725091488,-168.9,9.729e-05,2]
[420145689,1775725091714,-331.1,9.729e-05,2]
[420145690,1775725091757,-500.0,9.729e-05,2]
[420145691,1775725091786,-168.9,9.729e-05,2]
[420145692,1775725092063,-331.1,9.729e-05,2]
[420145693,1775725092091,-362.96165289,9.729e-05,2]
[420145694,1775725092120,-305.93834711,9.729e-05,2]
[420145695,1775725092471,-194.06165289,9.729e-05,2]
[420145696,1775725092500,-500.0,9.729e-05,2]
[420145697,1775725092528,-305.93834711,9.729e-05,2]
[420145698,1775725092783,-194.06165289,9.729e-05,2]
[420145699,1775725092811,-500.0,9.729e-05,2]
[420145700,1775725092839,-305.93834711,9.729e-05,2]
[420145701,1775725093181,-194.06165289,9.729e-05,2]
[420145702,1775725093221,-500.0,9.729e-05,2]
[420145703,1775725093253,-305.93834711,9.729e-05,2]
[420145704,1775725094467,-194.06165289,9.729e-05,2]
[420145705,1775725094497,-500.0,9.729e-05,2]
[420145706,1775725094526,-305.93834711,9.729e-05,2]
[420145707,1775725095224,-194.06165289,9.729e-05,2]
[420145708,1775725095253,-500.0,9.729e-05,2]
[420145709,1775725095283,-305.93834711,9.729e-05,2]
[420145710,1775725095646,-194.06165289,9.729e-05,2]
[420145711,1775725095675,-500.0,9.729e-05,2]
[420145712,1775725095705,-305.93834711,9.729e-05,2]
[420145713,1775725096048,-194.06165289,9.729e-05,2]
[420145714,1775725096077,-500.0,9.729e-05,2]
[420145715,1775725096107,-305.93834711,9.729e-05,2]
[420145716,1775725096626,-194.06165289,9.729e-05,2]
[420145717,1775725096655,-500.0,9.729e-05,2]
[420145718,1775725096683,-305.93834711,9.729e-05,2]
[420145719,1775725096858,-194.06165289,9.729e-05,2]
[420145720,1775725096888,-500.0,9.729e-05,2]
[420145721,1775725096917,-305.93834711,9.729e-05,2]
[420145722,1775725098835,-194.06165289,9.729e-05,2]
[420145723,1775725098865,-500.0,9.729e-05,2]
[420145724,1775725098895,-305.93834711,9.729e-05,2]
[420145725,1775725099090,-194.06165289,9.729e-05,2]
[420145726,1775725099118,-500.0,9.729e-05,2]
[420145727,1775725099148,-305.93834711,9.729e-05,2]
[420145728,1775725099751,-194.06165289,9.729e-05,2]
[420145729,1775725099783,-500.0,9.729e-05,2]
[420145730,1775725099812,-305.93834711,9.729e-05,2]
[420145731,1775725101042,-194.06165289,9.729e-05,2]
[420145732,1775725101071,-500.0,9.729e-05,2]
[420145733,1775725101099,-305.93834711,9.729e-05,2]
[420145734,1775725101492,-194.06165289,9.729e-05,2]
[420145735,1775725101519,-500.0,9.729e-05,2]
[420145736,1775725101546,-305.93834711,9.729e-05,2]
[420145737,1775725101935,-194.06165289,9.729e-05,2]
[420145738,1775725101962,-500.0,9.729e-05,2]
[420145739,1775725101989,-305.93834711,9.729e-05,2]
[420145740,1775725105621,-194.06165289,9.729e-05,2]
[420145741,1775725105650,-500.0,9.729e-05,2]
[420145742,1775725105679,-305.93834711,9.729e-05,2]
[420145743,1775725106799,-194.06165289,9.729e-05,2]
[420145744,1775725106827,-500.0,9.729e-05,2]
[420145745,1775725106854,-305.93834711,9.729e-05,2]
[420145746,1775725107569,-194.06165289,9.729e-05,2]
[420145747,1775725107598,-500.0,9.729e-05,2]
[420145748,1775725107626,-305.93834711,9.729e-05,2]
[420145749,1775725108039,-194.06165289,9.729e-05,2]
[420145750,1775725108068,-500.0,9.729e-05,2]
[420145751,1775725108098,-305.93834711,9.729e-05,2]
[420145753,1775725110324,-194.06165289,9.729e-05,2]
[420145754,1775725110352,-500.0,9.729e-05,2]
[420145755,1775725110381,-305.93834711,9.729e-05,2]
[420145756,1775725111772,-194.06165289,9.729e-05,2]
[420145757,1775725111801,-500.0,9.729e-05,2]
[420145758,1775725111831,-305.93834711,9.729e-05,2]
[420145761,1775725152948,150.0,6.181e-05,3]
[420145763,1775725216129,150.0,6.181e-05,3]
[420145767,1775725271453,150.0,6.181e-05,3]
[420145775,1775725489902,-300.0,9.533e-05,2]
[420145776,1775725489937,-300.0,9.533e-05,2]
[420145777,1775725489971,-247.59,9.534e-05,2]
[420145778,1775725490005,-4760.637,9.534e-05,2]
[420145779,1775725490038,-202.73,9.7e-05,2]
[420145780,1775725490070,-500.0,9.703e-05,2]
[420145781,1775725490103,-500.0,9.703e-05,2]
[420145782,1775725490519,-500.0,9.703e-05,2]
[420145783,1775725490554,-500.0,9.703e-05,2]
[420145784,1775725490586,-500.0,9.703e-05,2]
[420145785,1775725490618,-316.08390938,9.703e-05,2]
[420145786,1775725490650,-500.0,9.703e-05,2]
[420145787,1775725490681,-500.70850906,9.703e-05,2]
[420145788,1775725490713,-500.0,9.703e-05,2]
[420145789,1775725490746,-199.77,9.703e-05,2]
[420145790,1775725490779,-151.0,9.726e-05,2]
[420145791,1775725490810,-150.0,9.727e-05,2]
[420145792,1775725490842,-3023.43685101,9.727e-05,2]
[420145793,1775725490874,-503.49918518,9.728e-05,2]
[420145794,1775725490907,-1200.0,9.728e-05,2]
[420145795,1775725490941,-500.0,9.728e-05,2]
[420145796,1775725490974,-150.81482166,9.728e-05,2]
[420145797,1775725491007,-165.68748529,9.728e-05,2]
[420145798,1775725491039,-231.6185865,9.728e-05,2]
[420145799,1775725491073,-500.0,9.728e-05,2]
[420145800,1775725491107,-500.0,9.728e-05,2]
[420145801,1775725491139,-500.0,9.728e-05,2]
[420145802,1775725491171,-500.0,9.728e-05,2]
[420145803,1775725491203,-500.0,9.728e-05,2]
[420145804,1775725491236,-299.37164245,9.728e-05,2]
[420145805,1775725491270,-278.47967687,9.728e-05,2]
[420145806,1775725491303,-500.0,9.728e-05,2]
[420145807,1775725491335,-500.0,9.728e-05,2]
[420145808,1775725491368,-500.0,9.728e-05,2]
[420145809,1775725491401,-500.0,9.728e-05,2]
[420145810,1775725491434,-176.40541607,9.728e-05,2]
[420145811,1775725491467,-500.0,9.728e-05,2]
[420145812,1775725491500,-500.0,9.728e-05,2]
[420145813,1775725491533,-500.0,9.728e-05,2]
[420145814,1775725491566,-500.0,9.728e-05,2]
[420145815,1775725491599,-500.0,9.728e-05,2]
[420145816,1775725491631,-155.65541845,9.728e-05,2]
[420145817,1775725491669,-500.0,9.728e-05,2]
[420145818,1775725491701,-500.0,9.728e-05,2]
[420145819,1775725491738,-500.0,9.728e-05,2]
[420145820,1775725491777,-500.0,9.728e-05,2]
[420145821,1775725491814,-500.0,9.728e-05,2]
[420145822,1775725491854,-500.0,9.728e-05,2]
[420145823,1775725491886,-500.0,9.728e-05,2]
[420145824,1775725491926,-500.0,9.728e-05,2]
[420145825,1775725491959,-500.0,9.728e-05,2]
[420145826,1775725491997,-500.0,9.728e-05,2]
[420145827,1775725492031,-500.0,9.728e-05,2]
[420145828,1775725492063,-228.17947179,9.728e-05,2]
[420145829,1775725492099,-500.0,9.728e-05,2]
[420145830,1775725492135,-500.0,9.728e-05,2]
[420145831,1775725492402,-500.0,9.728e-05,2]
[420145832,1775725492443,-500.0,9.728e-05,2]
[420145833,1775725492479,-500.0,9.728e-05,2]
[420145834,1775725492515,-500.0,9.728e-05,2]
[420145835,1775725492552,-510.95165289,9.728e-05,2]
[420145836,1775725492583,-500.0,9.728e-05,2]
[420145837,1775725492619,-500.0,9.728e-05,2]
[420145838,1775725492657,-500.0,9.728e-05,2]
[420145839,1775725492690,-500.0,9.728e-05,2]
[420145840,1775725492727,-500.0,9.728e-05,2]
[420145841,1775725492760,-500.0,9.728e-05,2]
[420145842,1775725492797,-500.0,9.728e-05,2]
[420145843,1775725492832,-500.0,9.728e-05,2]
[420145844,1775725492870,-500.0,9.728e-05,2]
[420145845,1775725492903,-500.0,9.728e-05,2]
[420145846,1775725492935,-250.0,9.728e-05,2]
[420145847,1775725492970,-1243252.8112726,9.729e-05,2]
[420145848,1775725493003,-496472.294006,9.729e-05,2]
[420145849,1775725493035,-668.08993756,9.729e-05,2]
[420145850,1775725493073,-27715.0547,9.73e-05,2]
[420145851,1775725493109,-193089.13045724,9.73e-05,2]
[420145853,1775725502046,-1200.0,9.729e-05,2]
[420145854,1775725502082,-98091.63234276,9.73e-05,2]
[420145855,1775725502114,-460.075977,9.73e-05,2]
[420145856,1775725502147,-460.075977,9.73e-05,2]
[420145857,1775725502187,-460.075977,9.73e-05,2]
[420145858,1775725502228,-460.075977,9.73e-05,2]
[420145859,1775725502264,-300.0,9.8e-05,3]
[420145860,1775725502298,-1300.0,9.9e-05,3]
[420145861,1775725502333,-600.0,9.9e-05,3]
[420145862,1775725502367,-2600.0,0.0001,3]
[420145863,1775725502400,-900.0,0.0001,3]
[420145864,1775725502434,-150.0,0.0001,2]
[420145865,1775725502466,-1015.94760317,0.0001,2]
[420145866,1775725502500,-151.0,0.0001,2]
[420145867,1775725502532,-151.0,0.0001,2]
[420145868,1775725502565,-151.0,0.0001,2]
[420145869,1775725502601,-151.0,0.0001,2]
[420145870,1775725502634,-151.0,0.0001,2]
[420145871,1775725502668,-500.0,0.0001,2]
[420145872,1775725503227,-151.0,0.0001,2]
[420145873,1775725503263,-500.0,0.0001,2]
[420145874,1775725503297,-151.0,0.0001,2]
[420145875,1775725503330,-500.0,0.0001,2]
[420145876,1775725503364,-151.0,0.0001,2]
[420145877,1775725503396,-500.0,0.0001,2]
[420145878,1775725503430,-151.0,0.0001,2]
[420145879,1775725503463,-500.0,0.0001,2]
[420145880,1775725503497,-151.0,0.0001,2]
[420145881,1775725503529,-500.0,0.0001,2]
[420145882,1775725503562,-151.0,0.0001,2]
[420145883,1775725503593,-500.0,0.0001,2]
[420145884,1775725503626,-151.0,0.0001,2]
[420145885,1775725503659,-500.0,0.0001,2]
[420145886,1775725503690,-151.0,0.0001,2]
[420145887,1775725503726,-151.0,0.0001,2]
[420145888,1775725503759,-151.0,0.0001,2]
[420145889,1775725503793,-151.0,0.0001,2]
[420145890,1775725503826,-200.0,0.0001,2]
[420145891,1775725503860,-151.0,0.0001,2]
[420145892,1775725503892,-151.0,0.0001,2]
[420145893,1775725503926,-500.0,0.0001,2]
[420145894,1775725503960,-151.0,0.0001,2]
[420145895,1775725503993,-422.89884364,0.0001,2]
[420145896,1775725504026,-151.0,0.0001,2]
[420145897,1775725504060,-151.0,0.0001,2]
[420145898,1775725504094,-151.0,0.0001,2]
[420145899,1775725504128,-151.0,0.0001,2]
[420145900,1775725504161,-151.0,0.0001,2]
[420145901,1775725504194,-151.0,0.0001,2]
[420145902,1775725504226,-151.0,0.0001,2]
[420145903,1775725504261,-151.0,0.0001,2]
[420145904,1775725504296,-151.0,0.0001,2]
[420145905,1775725504329,-1156.41848616,0.0001,2]
[420145906,1775725504362,-151.0,0.0001,2]
[420145907,1775725504395,-151.0,0.0001,2]
[420145908,1775725504427,-151.0,0.0001,2]
[420145909,1775725504460,-151.0,0.0001,2]
[420145910,1775725504504,-151.0,0.0001,2]
[420145911,1775725504540,-151.0,0.0001,2]
[420145912,1775725504575,-151.0,0.0001,2]
[420145913,1775725504609,-151.0,0.0001,2]
[420145914,1775725504643,-151.0,0.0001,2]
[420145915,1775725504677,-152.37893373,0.0001,2]
[420145916,1775725504710,-1150.50831058,0.0001,2]
[420145917,1775725504744,-151.0,0.0001,2]
[420145918,1775725504778,-151.0,0.0001,2]
[420145919,1775725506446,869.43266541,9.728e-05,2]
[420145920,1775725506497,1360.07844521,9.728e-05,2]
[420145921,1775725506576,167.82754785,9.728e-05,2]
[420145922,1775725507303,633.73054427,9.703e-05,2]
[420145923,1775725539547,-29308.03746845,9.628e-05,2]
[420145925,1775725643745,-151.0,9.625e-05,2]
[420145926,1775725643770,-150.0,9.627e-05,2]
[420145927,1775725643798,-699.0,9.628e-05,2]
[420145928,1775725644491,-1000.0,9.628e-05,2]
[420145929,1775725644843,-1000.0,9.628e-05,2]
[420145930,1775725645182,-1000.0,9.628e-05,2]
[420145931,1775725645518,-1000.0,9.628e-05,2]
[420145932,1775725645836,-1000.0,9.628e-05,2]
[420145933,1775725646160,-1000.0,9.628e-05,2]
[420145934,1775725646482,-1000.0,9.628e-05,2]
[420145935,1775725646875,-1000.0,9.628e-05,2]
[420145936,1775725647305,-1000.0,9.628e-05,2]
[420145937,1775725647655,-1000.0,9.628e-05,2]
[420145938,1775725647969,-1000.0,9.628e-05,2]
[420145939,1775725648362,-1000.0,9.628e-05,2]
[420145940,1775725650110,-1000.0,9.628e-05,2]
[420145941,1775725650255,-1000.0,9.628e-05,2]
[420145942,1775725650363,-1000.0,9.628e-05,2]
[420145943,1775725650459,-1000.0,9.628e-05,2]
[420145944,1775725650595,-1000.0,9.628e-05,2]
[420145945,1775725653084,-1000.0,9.628e-05,2]
[420145946,1775725653661,-1000.0,9.628e-05,2]
[420145947,1775725653833,-1000.0,9.628e-05,2]
[420145948,1775725654501,-1000.0,9.628e-05,2]
[420145949,1775725658858,-1000.0,9.628e-05,2]
[420145950,1775725659262,-1000.0,9.628e-05,2]
[420145951,1775725659581,-1000.0,9.628e-05,2]
[420145952,1775725661750,-1000.0,9.628e-05,2]
[420145953,1775725661935,-1000.0,9.628e-05,2]
[420145954,1775725662069,-1000.0,9.628e-05,2]
[420145958,1775725674891,-1133.468,9.628e-05,2]
[420145959,1775725679445,-500.0,9.627e-05,2]
[420145960,1775725679477,-500.0,9.627e-05,2]
[420145961,1775725680202,-112.32796143,9.627e-05,2]
[420145962,1775725680241,-470312.96543155,9.628e-05,2]
[420145963,1775725680280,-454949.7005,9.629e-05,2]
[420145964,1775725680315,-3380.58,9.72e-05,2]
[420145965,1775725680350,-411.477138,9.73e-05,2]
[420145966,1775725680385,-411.477138,9.73e-05,2]
[420145967,1775725680420,-411.477138,9.73e-05,2]
[420145968,1775725680455,-411.477138,9.73e-05,2]
[420145969,1775725680494,-102296.8263781,9.741e-05,2]
[420145970,1775725680528,-3221.1,9.748e-05,2]
[420145971,1775725680564,-200.0,0.0001,2]
[420145972,1775725680605,-397.25763086,0.0001,2]
[420145973,1775725680642,-1106.96386402,0.0001,2]
[420145974,1775725680677,-2838.16841084,0.0001,2]
[420145975,1775725680713,-500.0,0.0001,2]
[420145976,1775725680752,-500.0,0.0001,2]
[420145977,1775725680788,-500.0,0.0001,2]
[420145978,1775725680824,-500.0,0.0001,2]
[420145979,1775725680860,-200.0,0.0001,2]
[420145980,1775725680895,-151.0,0.0001,2]
[420145981,1775725680930,-1156.41848616,0.0001,2]
[420145982,1775725680967,-151.0,0.0001,2]
[420145983,1775725681003,-151.0,0.0001,2]
[420145984,1775725681040,-286.22971031,0.0001,2]
[420145985,1775725681075,-177.4485034,0.0001,2]
[420145992,1775725832852,-561.10535588,0.0001,2]
[420145993,1775725832862,-200.0,0.0001,2]
[420145994,1775725832871,-1517.57,0.0001003,2]
[420145995,1775725832881,-156.02,0.00010071,2]
[420145996,1775725832890,-200.0,0.000101,2]
[420145997,1775725832900,-150.0,0.000101,2]
[420145998,1775725832910,-200.0,0.000101,2]
[420145999,1775725832919,-267.0,0.000102,3]
[420146000,1775725832928,-200.0,0.00010201,2]
[420146001,1775725832938,-200.0,0.00010201,2]
[420146002,1775725832947,-429.18487457,0.00010219,2]
[420146003,1775725832972,-70.81512543,0.00010219,2]
[420146004,1775725832982,-200.0,0.00010303,2]
[420146005,1775725832992,-200.0,0.00010303,2]
[420146006,1775725833001,-249.11113414,0.00010367,2]
[420146007,1775725833011,-1200.0,0.00010399,2]
[420146008,1775725833020,-2155.99281502,0.000104,5]
[420146009,1775725833031,-3377.00718498,0.000104,5]
[420146010,1775725833041,-300.0,0.00010405,2]
[420146011,1775725833050,-200.0,0.00010406,2]
[420146012,1775725833060,-200.0,0.00010406,2]
[420146013,1775725833070,-339.0,0.00010418,2]
[420146014,1775725833080,-150.0,0.00010425,2]
[420146015,1775725833089,-500.0,0.00010426,2]
[420146016,1775725833098,-500.0,0.00010426,2]
[420146017,1775725833108,-500.0,0.00010426,2]
[420146018,1775725833118,-500.0,0.00010426,2]
[420146019,1775725833127,-500.0,0.00010426,2]
[420146020,1775725833136,-500.0,0.00010426,2]
[420146021,1775725833145,-500.0,0.00010426,2]
[420146022,1775725833155,-500.0,0.00010426,2]